fUST/lending_fUST_20240808
["ID","MTS","AMOUNT","RATE_DAILY","PERIOD"]
[334437387,1723097474597,-688.97,0.00029041,7]
[334437388,1723097474607,-500.0,0.00029041,7]
[334437389,1723097474617,-500.0,0.00029041,7]
[334437390,1723097474626,-477.20019805,0.00029041,7]
[334437391,1723097474636,-500.0,0.00029041,7]
[334437392,1723097474646,-577.35,0.00029041,7]
[334437393,1723097474655,-596.69,0.00029041,7]
[334437394,1723097474665,-500.0,0.00029041,7]
[334437395,1723097474675,-500.0,0.00029041,7]
[334437396,1723097474684,-1200.63,0.00029041,7]
[334437397,1723097474694,-1719.03,0.00029041,7]
[334437398,1723097474704,-214.65725637,0.00029041,7]
[334437399,1723097474713,-500.0,0.00029041,7]
[334437400,1723097474724,-1032.93,0.00029041,7]
[334437401,1723097474734,-1221.05,0.00029041,7]
[334437402,1723097474746,-687.5,0.00029041,7]
[334437403,1723097474756,-500.0,0.00029041,7]
[334437404,1723097474765,-500.0,0.00029041,7]
[334437405,1723097474775,-500.0,0.00029041,7]
[334437406,1723097474784,-562.23,0.00029041,7]
[334437407,1723097474794,-500.0,0.00029041,7]
[334437408,1723097474803,-500.0,0.00029041,7]
[334437409,1723097474813,-1584.72,0.00029041,7]
[334437410,1723097474822,-500.0,0.00029041,7]
[334437411,1723097474833,-1735.01,0.00029041,7]
[334437412,1723097474843,-964.29,0.00029041,7]
[334437413,1723097474853,-553.06,0.00029041,7]
[334437414,1723097474863,-503.14273655,0.00029041,7]
[334437415,1723097474872,-579.2,0.00029041,7]
[334437416,1723097474882,-518.32,0.00029041,7]
[334437417,1723097474891,-1109.54,0.00029041,7]
[334437418,1723097474900,-500.0,0.00029041,7]
[334437419,1723097474910,-500.0,0.00029041,7]
[334437420,1723097474920,-500.0,0.00029041,7]
[334437421,1723097474929,-1294.75,0.00029041,7]
[334437422,1723097474939,-514.69334093,0.00029041,7]
[334437423,1723097474948,-500.0,0.00029041,7]
[334437424,1723097474958,-500.0,0.00029041,7]
[334437425,1723097474967,-572.08,0.00029041,7]
[334437426,1723097474976,-1565.79,0.00029041,7]
[334437427,1723097474988,-1291.46,0.00029041,7]
[334437428,1723097475001,-552.47,0.00029041,7]
[334437429,1723097475010,-500.0,0.00029041,7]
[334437430,1723097475020,-2418.34,0.00029041,7]
[334437431,1723097475029,-1739.01,0.00029041,7]
[334437432,1723097475038,-500.0,0.00029041,7]
[334437433,1723097475047,-500.0,0.00029041,7]
[334437434,1723097475057,-659.81,0.00029041,7]
[334437435,1723097475067,-500.0,0.00029041,7]
[334437436,1723097475076,-500.0,0.00029041,7]
[334437437,1723097475086,-1068.1,0.00029041,7]
[334437438,1723097475095,-500.0,0.00029041,7]
[334437439,1723097475105,-500.0,0.00029041,7]
[334437440,1723097475115,-500.0,0.00029041,7]
[334437441,1723097475124,-771.85,0.00029041,7]
[334437442,1723097475134,-500.0,0.00029041,7]
[334437443,1723097475143,-3357.13,0.00029041,7]
[334437444,1723097475152,-4524.16,0.00029041,7]
[334437445,1723097475162,-500.0,0.00029041,7]
[334437446,1723097475171,-500.0,0.00029041,7]
[334437447,1723097475181,-500.0,0.00029041,7]
[334437448,1723097475190,-3055.56,0.00029041,7]
[334437449,1723097475200,-2860.32,0.00029041,7]
[334437450,1723097475209,-2611.44,0.00029041,7]
[334437451,1723097475219,-500.0,0.00029041,7]
[334437452,1723097475229,-500.0,0.00029041,7]
[334437453,1723097475242,-2173.03,0.00029041,7]
[334437454,1723097475252,-500.0,0.00029041,7]
[334437455,1723097475261,-500.0,0.00029041,7]
[334437456,1723097475270,-501.0,0.00029041,7]
[334437457,1723097475282,-1497.66,0.00029041,7]
[334437458,1723097475292,-2916.59,0.00029041,7]
[334437459,1723097475302,-15082.67,0.00029041,7]
[334437460,1723097475311,-608.74,0.00029041,7]
[334437461,1723097475320,-500.0,0.00029041,7]
[334437462,1723097475330,-500.0,0.00029041,7]
[334437463,1723097475339,-500.0,0.00029041,7]
[334437464,1723097475348,-3210.55,0.00029041,7]
[334437465,1723097475358,-741.46,0.00029041,7]
[334437466,1723097475368,-503.12,0.00029041,7]
[334437467,1723097475378,-527.37,0.00029041,7]
[334437468,1723097475388,-500.0,0.00029041,7]
[334437469,1723097475398,-500.0,0.00029041,7]
[334437470,1723097475407,-4006.01,0.00029041,7]
[334437471,1723097475417,-919.24,0.00029041,7]
[334437472,1723097475426,-802.71,0.00029041,7]
[334437473,1723097475436,-500.0,0.00029041,7]
[334437474,1723097475445,-1094.26,0.00029041,7]
[334437475,1723097475455,-2445.43,0.00029041,7]
[334437476,1723097475465,-2524.39,0.00029041,7]
[334437477,1723097475475,-525.45,0.00029041,7]
[334437478,1723097475484,-500.0,0.00029041,7]
[334437479,1723097475497,-1510.39,0.00029041,7]
[334437480,1723097475506,-500.0,0.00029041,7]
[334437481,1723097475516,-500.0,0.00029041,7]
[334437482,1723097475525,-3917.99,0.00029041,7]
[334437483,1723097475534,-822.17,0.00029041,7]
[334437484,1723097475544,-771.01,0.00029041,7]
[334437485,1723097475554,-500.0,0.00029041,7]
[334437486,1723097475564,-1668.08,0.00029041,7]
[334437487,1723097475573,-500.0,0.00029041,7]
[334437488,1723097475583,-1266.97,0.00029041,7]
[334437489,1723097475593,-10380.83,0.00029041,7]
[334437490,1723097475603,-500.0,0.00029041,7]
[334437491,1723097475612,-655.78,0.00029041,7]
[334437492,1723097475622,-1441.39,0.00029041,7]
[334437493,1723097475631,-713.66,0.00029041,7]
[334437494,1723097475640,-514.47,0.00029041,7]
[334437495,1723097475649,-500.0,0.00029041,7]
[334437496,1723097475659,-1177.2,0.00029041,7]
[334437497,1723097475668,-5574.35,0.00029041,7]
[334437498,1723097475677,-1910.12,0.00029041,7]
[334437499,1723097475687,-6251.91,0.00029041,7]
[334437500,1723097475697,-816.09,0.00029041,7]
[334437501,1723097475707,-869.11,0.00029041,7]
[334437502,1723097475716,-913.01,0.00029041,7]
[334437503,1723097475726,-2096.19,0.00029041,7]
[334437504,1723097475736,-1855.07,0.00029041,7]
[334437505,1723097475747,-4052.01,0.00029041,7]
[334437506,1723097475756,-670.22,0.00029041,7]
[334437507,1723097475765,-1462.72,0.00029041,7]
[334437508,1723097475774,-500.0,0.00029041,7]
[334437509,1723097475783,-500.0,0.00029041,7]
[334437510,1723097475793,-2151.26,0.00029041,7]
[334437511,1723097475802,-500.0,0.00029041,7]
[334437512,1723097475812,-1697.36,0.00029041,7]
[334437513,1723097475821,-500.0,0.00029041,7]
[334437514,1723097475831,-6678.77,0.00029041,7]
[334437515,1723097475840,-500.0,0.00029041,7]
[334437516,1723097475849,-10465.71,0.00029041,7]
[334437517,1723097475859,-2728.76,0.00029041,7]
[334437518,1723097475869,-940.62,0.00029041,7]
[334437519,1723097475879,-1490.53,0.00029041,7]
[334437520,1723097475888,-501.07,0.00029041,7]
[334437521,1723097475898,-694.81,0.00029041,7]
[334437522,1723097475907,-2560.46,0.00029041,7]
[334437523,1723097475916,-500.0,0.00029041,7]
[334437524,1723097475926,-4101.69,0.00029041,7]
[334437525,1723097475935,-500.0,0.00029041,7]
[334437526,1723097475944,-583.69,0.00029041,7]
[334437527,1723097475955,-901.18,0.00029041,7]
[334437528,1723097475964,-500.0,0.00029041,7]
[334437529,1723097475974,-587.51,0.00029041,7]
[334437530,1723097475984,-792.62,0.00029041,7]
[334437531,1723097475996,-500.0,0.00029041,7]
[334437532,1723097476006,-869.94,0.00029041,7]
[334437533,1723097476165,-1845.59,0.00029041,7]
[334437534,1723097476186,-500.0,0.00029041,7]
[334437535,1723097476195,-647.75,0.00029041,7]
[334437536,1723097476205,-400.0,0.00029042,5]
[334437537,1723097476215,-400.0,0.00029042,5]
[334437538,1723097476224,-155.0,0.0002911,21]
[334437539,1723097476233,-4160.54,0.000293,14]
[334437540,1723097476244,-926.75,0.00029315,7]
[334437541,1723097476253,-516.33,0.00029315,7]
[334437542,1723097476263,-616.52,0.00029315,7]
[334437543,1723097476272,-1185.87,0.00029315,7]
[334437544,1723097476282,-563.69,0.00029315,7]
[334437545,1723097476293,-500.0,0.00029315,7]
[334437546,1723097476301,-500.0,0.00029315,7]
[334437547,1723097476310,-570.71,0.00029315,7]
[334437548,1723097476319,-500.0,0.00029315,7]
[334437549,1723097476330,-544.93,0.00029315,7]
[334437550,1723097476340,-500.0,0.00029315,7]
[334437551,1723097476350,-500.0,0.00029315,7]
[334437552,1723097476361,-587.75,0.00029315,7]
[334437553,1723097476370,-500.0,0.00029315,7]
[334437554,1723097476380,-500.0,0.00029315,7]
[334437555,1723097476389,-500.0,0.00029315,7]
[334437556,1723097476398,-500.0,0.00029315,7]
[334437557,1723097476407,-500.0,0.00029315,7]
[334437558,1723097476417,-500.0,0.00029315,7]
[334437559,1723097476427,-500.0,0.00029315,7]
[334437560,1723097476436,-500.0,0.00029315,7]
[334437561,1723097476445,-500.0,0.00029315,7]
[334437562,1723097476454,-647.18,0.00029315,7]
[334437563,1723097476463,-500.0,0.00029315,7]
[334437564,1723097476472,-500.0,0.00029315,7]
[334437565,1723097476482,-500.0,0.00029315,7]
[334437566,1723097476492,-500.0,0.00029315,7]
[334437567,1723097476502,-500.0,0.00029315,7]
[334437568,1723097476511,-500.0,0.00029315,7]
[334437569,1723097476520,-500.0,0.00029315,7]
[334437570,1723097476530,-512.71199984,0.00029315,7]
[334437571,1723097476540,-500.0,0.00029315,7]
[334437572,1723097476550,-500.0,0.00029315,7]
[334437573,1723097476560,-1176.69,0.00029315,7]
[334437574,1723097476569,-500.0,0.00029315,7]
[334437575,1723097476579,-746.49,0.00029315,7]
[334437576,1723097476588,-522.59,0.00029315,7]
[334437577,1723097476597,-500.0,0.00029315,7]
[334437578,1723097476607,-500.0,0.00029315,7]
[334437579,1723097476616,-500.0,0.00029315,7]
[334437580,1723097476625,-500.0,0.00029315,7]
[334437581,1723097476634,-500.0,0.00029315,7]
[334437582,1723097476644,-615.65,0.00029315,7]
[334437583,1723097476654,-500.0,0.00029315,7]
[334437584,1723097476663,-425.01113301,0.00029315,7]
[334437585,1723097476673,-500.0,0.00029315,7]
[334437586,1723097476682,-500.0,0.00029315,7]
[334437587,1723097476692,-525.21,0.00029315,7]
[334437588,1723097476701,-914.38,0.00029315,7]
[334437589,1723097476711,-500.0,0.00029315,7]
[334437590,1723097476720,-500.0,0.00029315,7]
[334437591,1723097476730,-500.0,0.00029315,7]
[334437592,1723097476739,-1320.93,0.00029315,7]
[334437593,1723097476748,-1042.79,0.00029315,7]
[334437594,1723097476758,-500.0,0.00029315,7]
[334437595,1723097476767,-676.12,0.00029315,7]
[334437596,1723097476776,-500.0,0.00029315,7]
[334437597,1723097476786,-500.0,0.00029315,7]
[334437598,1723097476795,-500.0,0.00029315,7]
[334437599,1723097476805,-500.0,0.00029315,7]
[334437600,1723097476814,-1274.14,0.00029315,7]
[334437601,1723097476824,-500.0,0.00029315,7]
[334437602,1723097476833,-500.0,0.00029315,7]
[334437603,1723097476843,-1435.68,0.00029315,7]
[334437604,1723097476852,-500.0,0.00029315,7]
[334437605,1723097476862,-874.42,0.00029315,7]
[334437606,1723097476871,-500.0,0.00029315,7]
[334437607,1723097476881,-500.0,0.00029315,7]
[334437608,1723097476891,-558.4,0.00029315,7]
[334437609,1723097476900,-500.0,0.00029315,7]
[334437610,1723097476910,-1250.57,0.00029315,7]
[334437611,1723097476919,-500.0,0.00029315,7]
[334437612,1723097476929,-500.0,0.00029315,7]
[334437613,1723097476939,-500.0,0.00029315,7]
[334437614,1723097476948,-2155.12,0.00029315,7]
[334437615,1723097476957,-694.77,0.00029315,7]
[334437616,1723097476966,-500.0,0.00029315,7]
[334437617,1723097476976,-500.0,0.00029315,7]
[334437618,1723097476985,-505.79909748,0.00029315,7]
[334437619,1723097477000,-652.81,0.00029315,7]
[334437620,1723097477010,-767.57,0.00029315,7]
[334437621,1723097477026,-500.0,0.00029315,7]
[334437622,1723097477036,-1218.11,0.00029315,7]
[334437623,1723097477045,-1397.27,0.00029315,7]
[334437624,1723097477055,-500.0,0.00029315,7]
[334437625,1723097477064,-500.0,0.00029315,7]
[334437626,1723097477073,-500.0,0.00029315,7]
[334437627,1723097477083,-500.0,0.00029315,7]
[334437628,1723097477093,-1574.69,0.00029315,7]
[334437629,1723097477102,-995.53,0.00029315,7]
[334437630,1723097477112,-1849.78,0.00029315,7]
[334437631,1723097477122,-2106.63,0.00029315,7]
[334437632,1723097477131,-500.0,0.00029315,7]
[334437633,1723097477141,-500.0,0.00029315,2]
[334437634,1723097477151,-529.59,0.00029315,7]
[334437635,1723097477160,-500.0,0.00029315,7]
[334437636,1723097477169,-603.91,0.00029315,7]
[334437637,1723097477179,-500.0,0.00029315,7]
[334437638,1723097477188,-500.0,0.00029315,7]
[334437639,1723097477198,-2032.38,0.00029315,7]
[334437640,1723097477207,-500.0,0.00029315,7]
[334437641,1723097477216,-500.0,0.00029315,7]
[334437642,1723097477226,-914.44,0.00029315,7]
[334437643,1723097477235,-786.32,0.00029315,7]
[334437644,1723097477255,-500.0,0.00029315,7]
[334437645,1723097477264,-677.89,0.00029315,7]
[334437646,1723097477274,-500.0,0.00029315,7]
[334437647,1723097477287,-500.0,0.00029315,7]
[334437648,1723097477296,-1873.06,0.00029315,7]
[334437649,1723097477306,-500.0,0.00029315,7]
[334437650,1723097477315,-568.08,0.00029315,7]
[334437651,1723097477326,-500.0,0.00029315,7]
[334437652,1723097477336,-500.0,0.00029315,7]
[334437653,1723097477345,-500.0,0.00029315,7]
[334437654,1723097477356,-744.91,0.00029315,7]
[334437655,1723097477366,-1155.09,0.00029315,7]
[334437656,1723097477375,-1556.36,0.00029315,7]
[334437657,1723097477386,-217.64568623,0.00029315,7]
[334437658,1723097477397,-925.79,0.00029315,7]
[334437659,1723097477406,-500.0,0.00029315,7]
[334437660,1723097477415,-1001.87,0.00029315,7]
[334437661,1723097477425,-822.61,0.00029315,7]
[334437662,1723097477434,-500.0,0.00029315,7]
[334437663,1723097477444,-727.37,0.00029315,7]
[334437664,1723097477454,-500.0,0.00029315,7]
[334437665,1723097477463,-556.34,0.00029315,7]
[334437666,1723097477472,-1119.39,0.00029315,7]
[334437667,1723097477481,-533.76,0.00029315,7]
[334437668,1723097477496,-500.0,0.00029315,7]
[334437669,1723097477505,-1082.35,0.00029315,7]
[334437670,1723097477514,-500.0,0.00029315,7]
[334437671,1723097477523,-526.88,0.00029315,7]
[334437672,1723097477532,-1017.08,0.00029315,7]
[334437673,1723097477542,-1633.61,0.00029315,7]
[334437674,1723097477552,-1757.49,0.00029315,7]
[334437675,1723097477561,-670.56,0.00029315,7]
[334437676,1723097477571,-500.0,0.00029315,7]
[334437677,1723097477580,-674.56,0.00029315,7]
[334437678,1723097477590,-500.0,0.00029315,7]
[334437679,1723097477599,-500.0,0.00029315,7]
[334437680,1723097477609,-752.34,0.00029315,7]
[334437681,1723097477618,-1005.06,0.00029315,7]
[334437682,1723097477628,-541.27,0.00029315,7]
[334437683,1723097477637,-688.97,0.00029315,7]
[334437684,1723097477647,-500.0,0.00029315,7]
[334437685,1723097477656,-500.0,0.00029315,7]
[334437686,1723097477665,-500.0,0.00029315,7]
[334437687,1723097477675,-577.35,0.00029315,7]
[334437688,1723097477684,-596.69,0.00029315,7]
[334437689,1723097477694,-500.0,0.00029315,7]
[334437690,1723097477703,-500.0,0.00029315,7]
[334437691,1723097477713,-1200.63,0.00029315,7]
[334437692,1723097477722,-1719.03,0.00029315,7]
[334437693,1723097477732,-500.0,0.00029315,7]
[334437694,1723097477744,-1032.93,0.00029315,7]
[334437695,1723097477754,-1221.05,0.00029315,7]
[334437696,1723097477763,-687.5,0.00029315,7]
[334437697,1723097477773,-500.0,0.00029315,7]
[334437698,1723097477782,-500.0,0.00029315,7]
[334437699,1723097477791,-506.0723567,0.00029315,7]
[334437700,1723097477801,-562.23,0.00029315,7]
[334437701,1723097477810,-500.0,0.00029315,7]
[334437702,1723097477819,-500.0,0.00029315,7]
[334437703,1723097477831,-1584.72,0.00029315,7]
[334437704,1723097477840,-500.0,0.00029315,7]
[334437705,1723097477850,-1735.01,0.00029315,7]
[334437706,1723097477860,-964.29,0.00029315,7]
[334437707,1723097477871,-553.06,0.00029315,7]
[334437708,1723097477880,-579.2,0.00029315,7]
[334437709,1723097477889,-518.32,0.00029315,7]
[334437710,1723097477899,-1109.54,0.00029315,7]
[334437711,1723097477908,-500.0,0.00029315,7]
[334437712,1723097477917,-500.0,0.00029315,7]
[334437713,1723097477927,-500.0,0.00029315,7]
[334437714,1723097477937,-1294.75,0.00029315,7]
[334437715,1723097477946,-500.0,0.00029315,7]
[334437716,1723097477955,-500.0,0.00029315,7]
[334437717,1723097477965,-572.08,0.00029315,7]
[334437718,1723097477975,-1565.79,0.00029315,7]
[334437719,1723097477984,-1291.46,0.00029315,7]
[334437720,1723097477997,-552.47,0.00029315,7]
[334437721,1723097478009,-500.0,0.00029315,7]
[334437722,1723097478018,-2418.34,0.00029315,7]
[334437723,1723097478028,-1739.01,0.00029315,7]
[334437724,1723097478038,-500.0,0.00029315,7]
[334437725,1723097478049,-500.0,0.00029315,7]
[334437726,1723097478058,-659.81,0.00029315,7]
[334437727,1723097478067,-500.0,0.00029315,7]
[334437728,1723097478078,-500.0,0.00029315,7]
[334437729,1723097478088,-1068.1,0.00029315,7]
[334437730,1723097478098,-500.0,0.00029315,7]
[334437731,1723097478108,-195.97793226,0.00029315,7]
[334437732,1723097478117,-500.0,0.00029315,7]
[334437733,1723097478126,-771.85,0.00029315,7]
[334437734,1723097478136,-616.74667674,0.00029315,7]
[334437735,1723097478146,-3357.13,0.00029315,7]
[334437736,1723097478156,-4524.16,0.00029315,7]
[334437737,1723097478165,-531.39450414,0.00029315,7]
[334437738,1723097478174,-500.0,0.00029315,7]
[334437739,1723097478184,-500.0,0.00029315,7]
[334437740,1723097478193,-3055.56,0.00029315,7]
[334437741,1723097478202,-2860.32,0.00029315,7]
[334437742,1723097478212,-2611.44,0.00029315,7]
[334437743,1723097478222,-500.0,0.00029315,7]
[334437744,1723097478231,-500.0,0.00029315,7]
[334437745,1723097478242,-2173.03,0.00029315,7]
[334437746,1723097478251,-500.0,0.00029315,7]
[334437747,1723097478261,-500.0,0.00029315,7]
[334437748,1723097478270,-501.0,0.00029315,7]
[334437749,1723097478280,-1497.66,0.00029315,7]
[334437750,1723097478293,-2916.59,0.00029315,7]
[334437751,1723097478303,-15082.67,0.00029315,7]
[334437752,1723097478312,-608.74,0.00029315,7]
[334437753,1723097478323,-500.0,0.00029315,7]
[334437754,1723097478333,-500.0,0.00029315,7]
[334437755,1723097478342,-500.0,0.00029315,7]
[334437756,1723097478351,-3210.55,0.00029315,7]
[334437757,1723097478361,-741.46,0.00029315,7]
[334437758,1723097478372,-503.12,0.00029315,7]
[334437759,1723097478382,-527.37,0.00029315,7]
[334437760,1723097478392,-500.0,0.00029315,7]
[334437761,1723097478402,-500.0,0.00029315,7]
[334437762,1723097478411,-4006.01,0.00029315,7]
[334437763,1723097478422,-919.24,0.00029315,7]
[334437764,1723097478432,-802.71,0.00029315,7]
[334437765,1723097478442,-500.0,0.00029315,7]
[334437766,1723097478451,-1094.26,0.00029315,7]
[334437767,1723097478461,-2445.43,0.00029315,7]
[334437768,1723097478474,-2524.39,0.00029315,7]
[334437769,1723097478483,-525.45,0.00029315,7]
[334437770,1723097478498,-500.0,0.00029315,7]
[334437771,1723097478508,-1510.39,0.00029315,7]
[334437772,1723097478518,-500.0,0.00029315,7]
[334437773,1723097478528,-500.0,0.00029315,7]
[334437774,1723097478537,-3917.99,0.00029315,7]
[334437775,1723097478547,-822.17,0.00029315,7]
[334437776,1723097478558,-771.01,0.00029315,7]
[334437777,1723097478568,-500.0,0.00029315,7]
[334437778,1723097478577,-1668.08,0.00029315,7]
[334437779,1723097478588,-500.0,0.00029315,7]
[334437780,1723097478597,-10380.83,0.00029315,7]
[334437781,1723097478607,-1266.97,0.00029315,7]
[334437782,1723097478616,-500.0,0.00029315,7]
[334437783,1723097478627,-655.78,0.00029315,7]
[334437784,1723097478637,-1441.39,0.00029315,7]
[334437785,1723097478647,-713.66,0.00029315,7]
[334437786,1723097478657,-514.47,0.00029315,7]
[334437787,1723097478667,-500.0,0.00029315,7]
[334437788,1723097478678,-1177.2,0.00029315,7]
[334437789,1723097478687,-5574.35,0.00029315,7]
[334437790,1723097478697,-1910.12,0.00029315,7]
[334437791,1723097478830,-6251.91,0.00029315,7]
[334437792,1723097478840,-816.09,0.00029315,7]
[334437793,1723097478850,-869.11,0.00029315,7]
[334437794,1723097478860,-913.01,0.00029315,7]
[334437795,1723097478871,-2096.19,0.00029315,7]
[334437796,1723097478880,-1855.07,0.00029315,7]
[334437797,1723097478889,-4052.01,0.00029315,7]
[334437798,1723097478898,-1462.72,0.00029315,7]
[334437799,1723097478907,-670.22,0.00029315,7]
[334437800,1723097478917,-500.0,0.00029315,7]
[334437801,1723097478926,-500.0,0.00029315,7]
[334437802,1723097478936,-2151.26,0.00029315,7]
[334437803,1723097478946,-500.0,0.00029315,7]
[334437804,1723097478957,-1697.36,0.00029315,7]
[334437805,1723097478967,-500.0,0.00029315,7]
[334437806,1723097478977,-6678.77,0.00029315,7]
[334437807,1723097478988,-591.34966857,0.00029315,7]
[334437808,1723097479000,-10465.71,0.00029315,7]
[334437809,1723097479010,-2728.76,0.00029315,7]
[334437810,1723097479019,-940.62,0.00029315,7]
[334437811,1723097479029,-1490.53,0.00029315,7]
[334437812,1723097479039,-501.07,0.00029315,7]
[334437813,1723097479048,-694.81,0.00029315,7]
[334437814,1723097479058,-2560.46,0.00029315,7]
[334437815,1723097479067,-500.0,0.00029315,7]
[334437816,1723097479077,-4101.69,0.00029315,7]
[334437817,1723097479086,-500.0,0.00029315,7]
[334437818,1723097479095,-583.69,0.00029315,7]
[334437819,1723097479105,-901.18,0.00029315,7]
[334437820,1723097479114,-500.0,0.00029315,7]
[334437821,1723097479124,-587.51,0.00029315,7]
[334437822,1723097479134,-792.62,0.00029315,7]
[334437823,1723097479143,-453.92418134,0.00029315,7]
[334437824,1723097479152,-869.94,0.00029315,7]
[334437825,1723097479161,-1845.59,0.00029315,7]
[334437826,1723097479171,-500.0,0.00029315,7]
[334437827,1723097479180,-647.75,0.00029315,7]
[334437828,1723097479190,-400.0,0.00029342,5]
[334437829,1723097479201,-400.0,0.00029342,5]
[334437830,1723097479210,-190.4,0.0002941,5]
[334437831,1723097479219,-194.7,0.0002941,5]
[334437832,1723097479229,-1412.0,0.00029485,2]
[334437833,1723097479242,-926.75,0.00029589,7]
[334437834,1723097479251,-516.33,0.00029589,7]
[334437835,1723097479260,-616.52,0.00029589,7]
[334437836,1723097479269,-1185.87,0.00029589,7]
[334437837,1723097479278,-563.69,0.00029589,7]
[334437838,1723097479291,-500.0,0.00029589,7]
[334437839,1723097479301,-500.0,0.00029589,7]
[334437840,1723097479311,-570.71,0.00029589,7]
[334437841,1723097479320,-500.0,0.00029589,7]
[334437842,1723097479330,-544.93,0.00029589,7]
[334437843,1723097479339,-500.0,0.00029589,7]
[334437844,1723097479348,-500.0,0.00029589,7]
[334437845,1723097479359,-587.75,0.00029589,7]
[334437846,1723097479370,-500.0,0.00029589,7]
[334437847,1723097479380,-500.0,0.00029589,7]
[334437848,1723097479390,-374.8014835,0.00029589,7]
[334437849,1723097479399,-500.0,0.00029589,7]
[334437850,1723097479409,-500.0,0.00029589,7]
[334437851,1723097479419,-500.0,0.00029589,7]
[334437852,1723097479428,-500.0,0.00029589,7]
[334437853,1723097479437,-500.0,0.00029589,7]
[334437854,1723097479447,-500.0,0.00029589,7]
[334437855,1723097479458,-647.18,0.00029589,7]
[334437856,1723097479467,-500.0,0.00029589,7]
[334437857,1723097479477,-504.395212,0.00029589,7]
[334437858,1723097479486,-500.0,0.00029589,7]
[334437859,1723097479499,-184.42538784,0.00029589,7]
[334437860,1723097479508,-500.0,0.00029589,7]
[334437861,1723097479517,-328.23555557,0.00029589,7]
[334437862,1723097479527,-500.0,0.00029589,7]
[334437863,1723097479536,-500.0,0.00029589,7]
[334437864,1723097479545,-1176.69,0.00029589,7]
[334437865,1723097479556,-500.0,0.00029589,7]
[334437866,1723097479565,-746.49,0.00029589,7]
[334437867,1723097479575,-522.59,0.00029589,7]
[334437868,1723097479585,-500.0,0.00029589,7]
[334437869,1723097479594,-500.0,0.00029589,7]
[334437870,1723097479604,-500.0,0.00029589,7]
[334437871,1723097479614,-500.0,0.00029589,7]
[334437872,1723097479623,-500.0,0.00029589,7]
[334437873,1723097479633,-615.65,0.00029589,7]
[334437874,1723097479643,-500.0,0.00029589,7]
[334437875,1723097479653,-371.78823488,0.00029589,7]
[334437876,1723097479662,-500.0,0.00029589,7]
[334437877,1723097479672,-525.21,0.00029589,7]
[334437878,1723097479682,-914.38,0.00029589,7]
[334437879,1723097479691,-500.0,0.00029589,7]
[334437880,1723097479701,-500.0,0.00029589,7]
[334437881,1723097479710,-500.0,0.00029589,7]
[334437882,1723097479720,-1320.93,0.00029589,7]
[334437883,1723097479730,-1042.79,0.00029589,7]
[334437884,1723097479741,-500.0,0.00029589,7]
[334437885,1723097479751,-676.12,0.00029589,7]
[334437886,1723097479761,-500.0,0.00029589,7]